bitfinex/quotes_BTCUSD_20250901
["timestamp","ask_amount","ask_price","bid_price","bid_amount"]
[1756769070087,0.47632348,108820.0,108810.0,0.51045262]
[1756769071100,0.47632348,108820.0,108810.0,0.32656599]
[1756769071280,0.47632348,108820.0,108810.0,0.51037262]
[1756769072095,0.47632348,108820.0,108810.0,0.32147599]
[1756769072268,0.47632348,108820.0,108810.0,0.32343599]
[1756769072474,0.47632348,108820.0,108810.0,0.51037262]
[1756769073678,0.29253374,108820.0,108810.0,0.51037262]
[1756769074212,0.29253374,108820.0,108810.0,0.53131144]
[1756769074421,0.50392859,108830.0,108820.0,0.18378974]
[1756769074686,0.29253374,108830.0,108820.0,0.2780031]
[1756769074940,0.29253374,108830.0,108820.0,0.28079573]
[1756769075891,0.47630659,108830.0,108820.0,0.28079573]
[1756769076083,0.47730659,108830.0,108820.0,0.28079573]
[1756769082315,0.18477285,108830.0,108820.0,0.28079573]
[1756769082522,0.47730659,108830.0,108820.0,0.28079573]
[1756769082730,0.47730659,108830.0,108820.0,0.09700599]
[1756769082952,0.47730659,108830.0,108820.0,0.09191599]
[1756769083168,0.47730659,108830.0,108820.0,0.24871599]
[1756769083375,0.50492859,108830.0,108820.0,0.24871599]
[1756769084364,0.50492859,108830.0,108820.0,0.09191599]
[1756769084566,0.50492859,108830.0,108820.0,0.24871599]
[1756769085926,0.50492859,108830.0,108820.0,0.09191599]
[1756769086140,0.50492859,108830.0,108820.0,0.24871599]
[1756769090867,0.50492859,108830.0,108820.0,0.25167599]
[1756769091042,0.50492859,108830.0,108820.0,0.24871599]
[1756769091495,0.50492859,108830.0,108820.0,0.25167599]
[1756769094961,0.50492859,108830.0,108820.0,0.25383599]
[1756769095909,0.50492859,108830.0,108820.0,0.43762573]
[1756769097358,0.32115574,108830.0,108820.0,0.43762573]
[1756769097566,0.29353374,108830.0,108820.0,0.43762573]
[1756769098202,0.29353374,108830.0,108820.0,0.45856455]
[1756769098407,0.001,108830.0,108820.0,0.45856455]
[1756769098816,0.29353374,108830.0,108820.0,0.45856455]
[1756769099024,0.29353374,108830.0,108820.0,0.45848455]
[1756769099236,0.29253374,108830.0,108820.0,0.45848455]
[1756769099653,0.29253374,108830.0,108820.0,0.46048455]
[1756769100078,0.29253374,108830.0,108820.0,0.46248455]
[1756769100477,0.47630659,108830.0,108820.0,0.30576455]
[1756769100690,0.47630659,108830.0,108820.0,0.46028455]
[1756769100899,0.47630659,108830.0,108820.0,0.44150573]
[1756769101722,0.18377285,108830.0,108820.0,0.25771599]
[1756769101932,0.47630659,108830.0,108820.0,0.25771599]
[1756769102135,0.47630659,108830.0,108820.0,0.44150573]
[1756769103357,0.47630659,108830.0,108820.0,0.28482573]
[1756769103564,0.47630659,108830.0,108820.0,0.25771599]
[1756769104961,0.47630659,108830.0,108820.0,0.44150573]
[1756769105176,0.47630659,108830.0,108820.0,0.25771599]
[1756769105599,0.47630659,108830.0,108820.0,0.44150573]
[1756769108548,0.47630659,108830.0,108820.0,0.44146573]
[1756769109249,0.47630659,108830.0,108820.0,0.10103599]
[1756769109457,0.47630659,108830.0,108820.0,0.44146573]
[1756769109669,0.18377285,108830.0,108820.0,0.44146573]
[1756769109899,0.47630659,108830.0,108820.0,0.44146573]
[1756769111732,0.29253374,108830.0,108820.0,0.44146573]
[1756769117091,0.47630659,108830.0,108820.0,0.25763599]
[1756769117500,0.47630659,108830.0,108820.0,0.44142573]
[1756769120587,0.29253374,108830.0,108820.0,0.44142573]
[1756769120797,0.29253374,108830.0,108820.0,0.46236455]
[1756769122017,0.29253374,108830.0,108820.0,0.46232455]
[1756769123565,0.47630659,108830.0,108820.0,0.30576455]
[1756769123777,0.47630659,108830.0,108820.0,0.46228455]
[1756769125183,0.29253374,108830.0,108820.0,0.46228455]
[1756769125738,0.47630659,108830.0,108820.0,0.46228455]
[1756769126834,0.47630659,108830.0,108820.0,0.27633481]
[1756769127258,0.47630659,108830.0,108820.0,0.46207455]
[1756769130382,0.47630659,108830.0,108820.0,0.30555455]
[1756769130686,0.47630659,108830.0,108820.0,0.46203455]
[1756769131908,0.47630659,108830.0,108820.0,0.44109573]
[1756769135025,0.47630659,108830.0,108820.0,0.25730599]
[1756769135252,0.47630659,108830.0,108820.0,0.44109573]
[1756769136070,0.25537698,108830.0,108820.0,0.44109573]
[1756769136205,0.47630659,108830.0,108820.0,0.44109573]
[1756769136413,0.23652763,108840.0,108820.0,0.44109573]
[1756769136625,0.23652763,108840.0,108830.0,0.27890884]
[1756769136832,0.5290607,108840.0,108830.0,0.28105884]
[1756769137502,0.34530473,108840.0,108830.0,0.28105884]
[1756769137717,0.34530473,108840.0,108830.0,0.28205884]
[1756769137936,0.5290607,108840.0,108830.0,0.28205884]
[1756769138346,0.5290607,108840.0,108830.0,0.28305884]
[1756769138555,0.05277099,108840.0,108830.0,0.30399766]
[1756769138762,0.02515299,108840.0,108830.0,0.30399766]
[1756769138971,0.47627542,108850.0,108840.0,0.18375597]
[1756769139179,0.47627542,108850.0,108840.0,0.4397789]
[1756769139382,0.47627542,108850.0,108840.0,0.43748196]
[1756769140220,0.4767488,108850.0,108840.0,0.43748196]
[1756769140425,0.4777488,108850.0,108840.0,0.43748196]
[1756769141051,0.4777488,108850.0,108840.0,0.25372599]
[1756769141271,0.50162385,108850.0,108840.0,0.24835599]
[1756769141625,0.52923985,108850.0,108840.0,0.24835599]
[1756769142308,0.52923985,108850.0,108840.0,0.09191599]
[1756769142491,0.82177359,108850.0,108840.0,0.24835599]
[1756769144471,0.82177359,108850.0,108840.0,0.24831599]
[1756769145736,0.82177359,108850.0,108840.0,0.09191599]
[1756769145937,0.82177359,108850.0,108840.0,0.24831599]
[1756769147607,0.52923985,108850.0,108840.0,0.24831599]
[1756769147828,0.23670611,108850.0,108840.0,0.43744196]
[1756769148050,0.34549817,108850.0,108840.0,0.43744196]
[1756769148265,0.52923726,108850.0,108840.0,0.43744196]
[1756769148691,0.50162126,108850.0,108840.0,0.50808196]
[1756769149569,0.02534843,108850.0,108840.0,0.50808196]
[1756769149780,0.31788217,108850.0,108840.0,0.50808196]
[1756769151206,0.50162126,108850.0,108840.0,0.50808196]
[1756769152028,0.31788217,108850.0,108840.0,0.50808196]
[1756769152029,0.50162126,108850.0,108840.0,0.50808196]
[1756769152740,0.31788217,108850.0,108840.0,0.52902078]
[1756769152954,0.02534843,108850.0,108840.0,0.52902078]
[1756769153152,0.31788217,108850.0,108840.0,0.52902078]
[1756769153368,0.02534843,108850.0,108840.0,0.52902078]
[1756769153561,0.31788217,108850.0,108840.0,0.52902078]
[1756769154380,0.31688217,108850.0,108840.0,0.37262078]
[1756769154605,0.31688217,108850.0,108840.0,0.37462078]
[1756769154805,0.31688217,108850.0,108840.0,0.53294078]
[1756769157894,0.31668602,108850.0,108840.0,0.53294078]
[1756769159765,0.31668602,108850.0,108840.0,0.37662078]
[1756769159970,0.50042511,108850.0,108840.0,0.53294078]
[1756769161227,0.50042511,108850.0,108840.0,0.37662078]
[1756769161440,0.50042511,108850.0,108840.0,0.53294078]
[1756769162482,0.31668602,108850.0,108840.0,0.53294078]
[1756769162926,0.50042511,108850.0,108840.0,0.53294078]
[1756769164075,0.02415228,108850.0,108840.0,0.53294078]
[1756769164287,0.31668602,108850.0,108840.0,0.53294078]
[1756769165475,0.50042511,108850.0,108840.0,0.37662078]
[1756769165684,0.50042511,108850.0,108840.0,0.53290078]
[1756769166882,0.31668602,108850.0,108840.0,0.53290078]
[1756769168242,0.00027723,108850.0,108840.0,0.53290078]
[1756769168667,0.00027723,108850.0,108840.0,0.56051278]
[1756769170004,0.02064212,108850.0,108840.0,0.56051278]
[1756769170427,0.00027723,108850.0,108840.0,0.56051278]
[1756769172278,0.02058405,108850.0,108840.0,0.56051278]
[1756769172688,0.00027723,108850.0,108840.0,0.40423278]
[1756769172903,0.00027723,108850.0,108840.0,0.56047278]
[1756769176833,0.00027723,108850.0,108840.0,0.85300652]
[1756769177464,0.00027723,108850.0,108840.0,0.56047278]
[1756769178823,0.00027723,108850.0,108840.0,0.60165648]
[1756769181685,0.00027723,108850.0,108840.0,0.60157648]
[1756769186420,0.00027723,108850.0,108840.0,0.44541648]
[1756769186639,0.00027723,108850.0,108840.0,0.60157648]
[1756769186846,0.29281097,108850.0,108840.0,0.60157648]
[1756769187470,0.29281097,108850.0,108840.0,0.44541648]
[1756769187651,0.29281097,108850.0,108840.0,0.60153648]
[1756769188093,0.29281097,108850.0,108840.0,0.40423278]
[1756769188414,0.29281097,108850.0,108840.0,0.55498278]
[1756769188559,0.29281097,108850.0,108840.0,0.56006278]
[1756769191693,0.29281097,108850.0,108840.0,0.40185278]
[1756769191908,0.47655006,108850.0,108840.0,0.55498278]
[1756769192132,0.47655006,108850.0,108840.0,0.55494278]
[1756769192351,0.47655006,108850.0,108840.0,0.39886278]
[1756769192572,0.47655006,108850.0,108840.0,0.55494278]
[1756769192799,0.47655006,108850.0,108840.0,0.39886278]
[1756769192990,0.47655006,108850.0,108840.0,0.55494278]
[1756769193644,0.47655006,108850.0,108840.0,0.37792396]
[1756769193865,0.47655006,108850.0,108840.0,0.50639196]
[1756769194081,0.47655006,108850.0,108840.0,0.32263599]
[1756769194295,0.30618856,108850.0,108840.0,0.32263599]
[1756769194501,0.30618856,108850.0,108840.0,0.16655599]
[1756769194740,0.30618856,108850.0,108840.0,0.32263599]
[1756769195393,0.30618856,108850.0,108840.0,0.16655599]
[1756769195602,0.6263393,108850.0,108840.0,0.32263599]
[1756769195811,0.6263393,108850.0,108840.0,0.16655599]
[1756769196070,0.6263393,108850.0,108840.0,0.32263599]
[1756769196696,0.6263393,108850.0,108840.0,0.31863599]
[1756769196909,0.6263393,108850.0,108840.0,0.32063599]
[1756769197319,0.6263393,108850.0,108840.0,0.31863599]
[1756769197500,0.6273393,108850.0,108840.0,0.31863599]
[1756769197758,0.6263393,108850.0,108840.0,0.31863599]
[1756769198168,0.6273393,108850.0,108840.0,0.31863599]
[1756769199139,0.6273393,108850.0,108840.0,0.16255599]
[1756769199351,0.6273393,108850.0,108840.0,0.31863599]
[1756769199551,0.9673393,108850.0,108840.0,0.16255599]
[1756769199757,0.9673393,108850.0,108840.0,0.31863599]
[1756769201354,0.9673393,108850.0,108840.0,0.16255599]
[1756769201564,0.18378974,108820.0,108810.0,0.33117966]
[1756769201767,0.47632348,108820.0,108810.0,0.3953323]
[1756769201970,0.47632348,108820.0,108810.0,0.2392923]
[1756769202171,0.47632348,108820.0,108810.0,0.32182599]
[1756769202390,0.47632348,108820.0,108810.0,0.32389599]
[1756769202793,0.47632348,108820.0,108810.0,0.32182599]
[1756769203004,0.50394748,108820.0,108810.0,0.32163599]
[1756769203212,0.50394748,108820.0,108810.0,0.32159599]
[1756769203671,0.50394748,108820.0,108810.0,0.32559599]
[1756769204432,0.50394748,108820.0,108810.0,0.32159599]
[1756769204786,0.50394748,108820.0,108810.0,0.31859599]
[1756769205004,0.50394748,108820.0,108810.0,0.32059599]
[1756769205943,0.50394748,108820.0,108810.0,0.32578599]
[1756769206401,0.50394748,108820.0,108810.0,0.16774599]
[1756769206604,0.50394748,108820.0,108810.0,0.32478599]
[1756769207185,0.50394748,108820.0,108810.0,0.32278599]
[1756769207562,0.50394748,108820.0,108810.0,0.32178599]
[1756769207708,0.50394748,108820.0,108810.0,0.32278599]
[1756769207919,0.50394748,108820.0,108810.0,0.32378599]
[1756769208116,0.50394748,108820.0,108810.0,0.32585599]
[1756769208327,0.50394748,108820.0,108810.0,0.50966262]
[1756769208708,0.027624,108820.0,108810.0,0.50966262]
[1756769209306,0.027624,108820.0,108810.0,0.50866262]
[1756769209732,0.027624,108820.0,108810.0,0.50966262]
[1756769210711,0.50394748,108820.0,108810.0,0.50966262]
[1756769215088,0.50394748,108820.0,108810.0,0.35362262]
[1756769215305,0.50394748,108820.0,108810.0,0.50966262]
[1756769215666,0.50394748,108820.0,108810.0,0.50962262]
[1756769217916,0.50394748,108820.0,108810.0,0.32581599]
[1756769218137,0.50394748,108820.0,108810.0,0.50962262]
[1756769219459,0.027624,108820.0,108810.0,0.50962262]
[1756769219584,0.32015774,108820.0,108810.0,0.50962262]
[1756769221435,0.50394748,108820.0,108810.0,0.50962262]
[1756769221835,0.32015774,108820.0,108810.0,0.50962262]
[1756769222040,0.81629219,108840.0,108830.0,0.18377285]
[1756769222258,0.32015374,108840.0,108830.0,0.439206]
[1756769222475,0.10348913,108840.0,108830.0,0.43690884]
[1756769222706,0.02762,108840.0,108830.0,0.43690884]
[1756769222924,0.50629332,108860.0,108840.0,0.18375597]
[1756769223148,0.53390932,108860.0,108850.0,0.09717599]
[1756769223369,0.87390932,108860.0,108850.0,0.09191599]
[1756769223607,0.87390932,108860.0,108850.0,0.24587599]
[1756769223844,0.87390932,108860.0,108850.0,0.24487599]
[1756769224068,0.87490932,108860.0,108850.0,0.24487599]
[1756769225151,0.87490932,108860.0,108850.0,0.08891599]
[1756769225379,0.87390932,108860.0,108850.0,0.24487599]
[1756769225818,0.87390932,108860.0,108850.0,0.08891599]
[1756769226028,0.87490932,108860.0,108850.0,0.24487599]
[1756769226716,0.87490932,108860.0,108850.0,0.08891599]
[1756769226927,0.87490932,108860.0,108850.0,0.24487599]
[1756769228696,0.87490932,108860.0,108850.0,0.25006599]
[1756769228905,0.87490932,108860.0,108850.0,0.24487599]
[1756769229578,0.87490932,108860.0,108850.0,0.24483599]
[1756769230679,0.67033585,108860.0,108850.0,0.24483599]
[1756769230876,0.85408594,108860.0,108850.0,0.24483599]
[1756769233065,0.85408594,108860.0,108850.0,0.08891599]
[1756769233298,0.85408594,108860.0,108850.0,0.24479599]
[1756769234060,0.8725558,108860.0,108850.0,0.24479599]
[1756769236037,0.8725558,108860.0,108850.0,0.24998599]
[1756769236956,0.58002206,108860.0,108850.0,0.24998599]
[1756769237182,0.8725558,108860.0,108850.0,0.24998599]
[1756769238299,0.8725558,108860.0,108850.0,0.09410599]
[1756769238533,0.8725558,108860.0,108850.0,0.24479599]
[1756769239184,0.8725558,108860.0,108850.0,0.24998599]
[1756769239632,0.8725558,108860.0,108850.0,0.24801599]
[1756769240675,0.8725558,108860.0,108850.0,0.24479599]
[1756769241664,0.58002206,108860.0,108850.0,0.24479599]
[1756769241901,0.8725558,108860.0,108850.0,0.24479599]
[1756769242105,0.8725558,108860.0,108850.0,0.24801599]
[1756769244593,0.8725558,108860.0,108850.0,0.24479599]
[1756769244970,0.8725558,108860.0,108850.0,0.24475599]
[1756769245180,0.89794725,108860.0,108850.0,0.24475599]
[1756769247766,0.89794725,108860.0,108850.0,0.24797599]
[1756769250608,0.8725558,108860.0,108850.0,0.24994599]
[1756769251294,0.58002206,108860.0,108850.0,0.24990599]
[1756769251497,0.8725558,108860.0,108850.0,0.24990599]
[1756769258777,0.8725558,108860.0,108850.0,0.09410599]
[1756769259093,0.8725558,108860.0,108850.0,0.24986599]
[1756769263767,0.8725558,108860.0,108850.0,0.09097599]
[1756769263940,0.8725558,108860.0,108850.0,0.24981599]
[1756769264580,0.8725558,108860.0,108850.0,0.09405599]
[1756769264773,0.8725558,108860.0,108850.0,0.24977599]
[1756769270441,0.8725558,108860.0,108850.0,0.09405599]
[1756769270875,0.8725558,108860.0,108850.0,0.24977599]
[1756769271730,0.8725558,108860.0,108850.0,0.08891599]
[1756769271932,0.8725558,108860.0,108850.0,0.24977599]
[1756769272140,1.16441688,108860.0,108850.0,0.24977599]
[1756769275628,1.16441688,108860.0,108850.0,0.09405599]
[1756769275843,1.16441688,108860.0,108850.0,0.24973599]
[1756769278006,0.78761477,108860.0,108850.0,0.24973599]
[1756769278606,0.78761477,108860.0,108850.0,0.09405599]
[1756769278894,0.79680088,108860.0,108850.0,0.24973599]
[1756769279298,1.11438974,108860.0,108850.0,0.24459599]
[1756769279533,0.82441788,108860.0,108850.0,0.24459599]
[1756769279739,0.82441788,108860.0,108850.0,0.24973599]
[1756769279936,1.13680088,108860.0,108850.0,0.24973599]
[1756769280344,0.55240606,108860.0,108850.0,0.24973599]
[1756769280788,1.13680088,108860.0,108850.0,0.24973599]
[1756769281453,0.54319207,108860.0,108850.0,0.43347508]
[1756769281655,0.83538948,108860.0,108850.0,0.43347508]
[1756769281854,0.31166727,108860.0,108850.0,0.43347508]
[1756769282098,0.65166727,108860.0,108850.0,0.43347508]
[1756769282304,0.83538948,108860.0,108850.0,0.43347508]
[1756769282502,0.83538948,108860.0,108850.0,0.27779508]
[1756769282675,0.83538948,108860.0,108850.0,0.43347508]
[1756769284063,0.83531057,108860.0,108850.0,0.43347508]
[1756769284591,0.54319207,108860.0,108850.0,0.43347508]
[1756769284802,0.83531057,108860.0,108850.0,0.43347508]
[1756769286663,0.83531057,108860.0,108850.0,0.09405599]
[1756769286879,0.83531057,108860.0,108850.0,0.24969599]
[1756769287359,0.83531057,108860.0,108850.0,0.09405599]
[1756769287569,0.83531057,108860.0,108850.0,0.24969599]
[1756769288319,0.83531057,108860.0,108850.0,0.43343508]
[1756769290430,0.83531057,108860.0,108850.0,0.24969599]
[1756769290603,0.83531057,108860.0,108850.0,0.43343508]
[1756769291406,0.65158836,108860.0,108850.0,0.43343508]
[1756769292011,0.35946986,108860.0,108850.0,0.43343508]
[1756769292204,0.54319207,108860.0,108850.0,0.43343508]
[1756769293343,0.83531057,108860.0,108850.0,0.43343508]
[1756769294815,0.54319207,108860.0,108850.0,0.43343508]
[1756769295020,0.83531057,108860.0,108850.0,0.43343508]
[1756769299182,0.35946986,108860.0,108850.0,0.43343508]
[1756769299814,0.35946986,108860.0,108850.0,0.7464924]
[1756769299815,0.01946986,108860.0,108850.0,0.7464924]
[1756769299989,0.01946986,108860.0,108850.0,0.4543739]
[1756769300672,0.01946986,108860.0,108850.0,0.4819829]
[1756769300877,0.01846986,108860.0,108850.0,0.4819829]
[1756769301049,0.01846986,108860.0,108850.0,0.7761014]
[1756769301273,0.2921185,108880.0,108870.0,0.18370533]
[1756769301458,0.81580696,108880.0,108870.0,0.43561763]
[1756769301632,0.81580696,108880.0,108870.0,0.43638132]
[1756769304589,0.6321185,108880.0,108870.0,0.43638132]
[1756769304790,0.81580696,108880.0,108870.0,0.43638132]
[1756769305347,0.84945392,108880.0,108870.0,0.28078132]
[1756769305487,0.84945392,108880.0,108870.0,0.43638132]
[1756769307131,0.84945392,108880.0,108870.0,0.25263599]
[1756769307332,0.84945392,108880.0,108870.0,0.43634132]
[1756769307971,1.14141526,108880.0,108870.0,0.43634132]
[1756769311669,0.37364696,108880.0,108870.0,0.43634132]
[1756769312399,0.66568688,108880.0,108870.0,0.46394732]
[1756769312747,0.66568688,108880.0,108870.0,0.30838732]
[1756769312946,0.84937534,108880.0,108870.0,0.46394732]
[1756769313380,0.66568688,108880.0,108870.0,0.46394732]
[1756769313824,0.84937534,108880.0,108870.0,0.46394732]
[1756769314161,0.84937534,108880.0,108870.0,0.30838732]
[1756769314388,0.84937534,108880.0,108870.0,0.46390732]
[1756769315747,0.84937534,108880.0,108870.0,0.30838732]
[1756769315974,0.55733542,108880.0,108870.0,0.46390732]
[1756769316213,0.84937534,108880.0,108870.0,0.46390732]
[1756769318675,1.14141526,108880.0,108870.0,0.12468199]
[1756769318882,1.14141526,108880.0,108870.0,0.24743599]
[1756769319292,1.14141526,108880.0,108870.0,0.25040599]
[1756769320060,1.14141526,108880.0,108870.0,0.43609132]
[1756769320428,1.14141526,108880.0,108870.0,0.25040599]
[1756769320634,1.14141526,108880.0,108870.0,0.24743599]
[1756769320894,1.14141526,108880.0,108870.0,0.09191599]
[1756769321082,1.14141526,108880.0,108870.0,0.24743599]
[1756769321425,1.14141526,108880.0,108870.0,0.09191599]
[1756769321634,1.43345518,108880.0,108870.0,0.09191599]
[1756769321839,1.43345518,108880.0,108870.0,0.24743599]
[1756769321840,1.46106718,108880.0,108870.0,0.24743599]
[1756769322035,1.46106718,108880.0,108870.0,0.09191599]
[1756769322242,1.46106718,108880.0,108860.0,0.07064]
[1756769322243,0.52370533,108870.0,108860.0,0.07064]
[1756769322454,1.10778517,108870.0,108860.0,0.24743599]
[1756769322860,1.13539917,108870.0,108860.0,0.24743599]
[1756769324140,1.13539917,108870.0,108860.0,0.09291599]
[1756769324344,1.13539917,108870.0,108860.0,0.24843599]
[1756769324704,1.13539917,108870.0,108860.0,0.24743599]
[1756769325945,0.55131933,108870.0,108860.0,0.24743599]
[1756769326221,1.13567821,108870.0,108860.0,0.24743599]
[1756769327032,0.84349877,108870.0,108860.0,0.25238599]
[1756769328910,0.84349877,108870.0,108860.0,0.24943599]
[1756769331014,0.84349877,108870.0,108860.0,0.25240599]
[1756769331370,0.84349877,108870.0,108860.0,0.25438599]
[1756769332806,0.84349877,108870.0,108860.0,0.25240599]
[1756769334069,0.55131933,108870.0,108860.0,0.4381082]
[1756769334286,0.84349877,108870.0,108860.0,0.25438599]
[1756769335530,0.84349877,108870.0,108860.0,0.4381082]
[1756769336589,0.84349877,108870.0,108860.0,0.25438599]
[1756769338708,0.84349877,108870.0,108860.0,0.4381082]
[1756769339298,0.84349877,108870.0,108860.0,0.25438599]
[1756769340486,1.13567821,108870.0,108860.0,0.25232599]
[1756769341207,1.13567821,108870.0,108860.0,0.4380282]
[1756769341407,0.84349877,108870.0,108860.0,0.4380282]
[1756769342050,0.84349877,108870.0,108860.0,0.25430599]
[1756769343152,0.84349877,108870.0,108860.0,0.24935599]
[1756769343517,1.13567821,108870.0,108860.0,0.24935599]
[1756769343909,1.13567821,108870.0,108860.0,0.25232599]
[1756769347109,1.13567821,108870.0,108860.0,0.09391599]
[1756769347311,1.13567821,108870.0,108860.0,0.24935599]
[1756769348618,1.13567821,108870.0,108860.0,0.24835599]
[1756769348822,1.13567821,108870.0,108860.0,0.24735599]
[1756769349143,1.13567821,108870.0,108860.0,0.25045599]
[1756769349527,1.13567821,108870.0,108860.0,0.09501599]
[1756769349826,1.13567821,108870.0,108860.0,0.25045599]
[1756769350482,1.13567821,108870.0,108860.0,0.25358599]
[1756769351206,1.13567821,108870.0,108860.0,0.25458599]
[1756769352049,1.13564205,108870.0,108860.0,0.25458599]
[1756769353103,0.55131933,108870.0,108860.0,0.4383082]
[1756769353307,1.13564205,108870.0,108860.0,0.4382682]
[1756769354281,0.55131933,108870.0,108860.0,0.4382682]
[1756769354468,1.13564205,108870.0,108860.0,0.4382682]
[1756769356530,0.63216136,108870.0,108860.0,0.4382682]
[1756769356741,0.29216136,108870.0,108860.0,0.4382682]
[1756769357174,0.21733542,108880.0,108870.0,0.18370533]
[1756769357375,0.80165814,108880.0,108870.0,0.28085132]
[1756769357553,1.14165814,108880.0,108870.0,0.28085132]
[1756769358271,0.95796968,108880.0,108870.0,0.28085132]
[1756769359405,1.14165814,108880.0,108870.0,0.43625132]
[1756769359775,1.14165814,108880.0,108870.0,0.28085132]
[1756769359977,0.84938725,108880.0,108870.0,0.28085132]
[1756769360176,0.84938725,108880.0,108870.0,0.43625132]
[1756769363364,0.84938725,108880.0,108870.0,0.09714599]
[1756769363625,0.84938725,108880.0,108870.0,0.25250599]
[1756769363800,0.84938725,108880.0,108870.0,0.43621132]
[1756769364781,0.84938725,108880.0,108870.0,0.28085132]
[1756769364983,0.84938725,108880.0,108870.0,0.43621132]
[1756769365876,0.66569879,108880.0,108870.0,0.43621132]
[1756769366458,0.37364696,108880.0,108870.0,0.28085132]
[1756769366666,0.66569879,108880.0,108870.0,0.43621132]
[1756769368867,0.32569879,108880.0,108870.0,0.43621132]
[1756769369065,0.29205183,108890.0,108880.0,0.18368846]
[1756769369279,0.29205183,108890.0,108880.0,0.28313055]
[1756769369484,0.29205183,108890.0,108880.0,0.43619445]
[1756769369628,0.47570683,108900.0,108890.0,0.18367159]
[1756769369629,0.63205183,108900.0,108890.0,0.18367159]
[1756769369841,0.92410366,108900.0,108890.0,0.28081758]
[1756769370031,1.10775838,108900.0,108890.0,0.28081758]
[1756769370229,1.10775838,108900.0,108890.0,0.28090462]
[1756769370874,0.63205183,108900.0,108890.0,0.28090462]
[1756769371095,0.0002,108920.0,108910.0,0.18363786]
[1756769371294,0.50347283,108920.0,108910.0,0.43397385]
[1756769371546,0.84347283,108920.0,108910.0,0.43397385]
[1756769372343,0.88063145,108920.0,108910.0,0.43397385]
[1756769372718,0.88063145,108920.0,108910.0,0.24723599]
[1756769372939,0.88063145,108920.0,108910.0,0.09191599]
[1756769373149,0.88063145,108920.0,108910.0,0.43087385]
[1756769373464,0.88063145,108920.0,108910.0,0.24723599]
[1756769374027,0.88063145,108920.0,108910.0,0.09191599]
[1756769374214,0.88063145,108920.0,108910.0,0.24723599]
[1756769374877,0.88063145,108920.0,108910.0,0.09191599]
[1756769375090,0.88063145,108920.0,108910.0,0.24723599]
[1756769376084,0.88063145,108920.0,108910.0,0.24719599]
[1756769377075,0.69701045,108920.0,108910.0,0.43599385]
[1756769377265,0.88063145,108920.0,108910.0,0.43599385]
[1756769378925,0.03735862,108920.0,108910.0,0.43599385]
[1756769379149,0.32941045,108920.0,108910.0,0.43599385]
[1756769380708,0.32941045,108920.0,108910.0,0.50659385]
[1756769380954,0.03735862,108920.0,108910.0,0.50659385]
[1756769381278,0.32941045,108920.0,108910.0,0.50659385]
[1756769381817,0.0002,108920.0,108910.0,0.52753267]
[1756769382031,0.0002,108920.0,108910.0,0.6643045]
[1756769382235,0.0002,108920.0,108910.0,0.52749267]
[1756769382435,0.0002,108920.0,108910.0,0.86010633]
[1756769382644,0.0002,108920.0,108910.0,0.88769633]
[1756769382940,0.0002,108920.0,108910.0,1.28769633]
[1756769383312,0.0002,108920.0,108910.0,1.29269633]
[1756769383469,0.0002,108920.0,108910.0,1.29669633]
[1756769384302,0.0002,108920.0,108910.0,1.63669633]
[1756769385176,0.0002,108930.0,108920.0,0.183621]
[1756769385309,0.0002,108930.0,108920.0,0.79363408]
[1756769385524,0.0002,108930.0,108920.0,0.53881239]
[1756769385754,0.0002,108930.0,108920.0,0.93881239]
[1756769386495,0.0002,108930.0,108920.0,0.94581239]
[1756769387106,0.0002,108930.0,108920.0,1.25880304]
[1756769388472,0.0002,108930.0,108920.0,1.59880304]
[1756769389485,0.0002,108930.0,108920.0,1.75400304]
[1756769389687,0.0002,108930.0,108920.0,1.78158904]
[1756769391178,0.11367337,108950.0,108940.0,0.20452611]
[1756769391353,0.11367337,108950.0,108940.0,0.5222021]
[1756769391557,0.11367337,108950.0,108940.0,0.5273621]
[1756769391778,0.0015,108960.0,108950.0,0.18357044]
[1756769391987,0.0015,108960.0,108950.0,0.28085106]
[1756769392192,0.0015,108960.0,108950.0,0.28064643]
[1756769392394,0.03864739,108960.0,108950.0,0.43580643]
[1756769392594,0.00197367,108960.0,108950.0,0.28064643]
[1756769392798,0.00197367,108960.0,108950.0,0.43064643]
[1756769393000,0.58607733,108960.0,108950.0,0.43064643]
[1756769393250,0.2940255,108960.0,108950.0,0.43064643]
[1756769395350,0.2940255,108960.0,108950.0,0.27548643]
[1756769395579,0.03378469,108960.0,108950.0,0.43064643]
[1756769395899,0.32583652,108960.0,108950.0,0.43064643]
[1756769397577,0.50939011,108960.0,108950.0,0.31712454]
[1756769397787,0.50939011,108960.0,108950.0,0.47224454]
[1756769397994,0.32583652,108960.0,108950.0,0.31712454]
[1756769398204,0.32583652,108960.0,108950.0,0.47224454]
[1756769399063,0.50939011,108960.0,108950.0,0.31712454]
[1756769399261,0.50939011,108960.0,108950.0,0.47224454]
[1756769399488,0.51794376,108960.0,108950.0,0.47224454]
[1756769400199,0.33439017,108960.0,108950.0,0.47224454]
[1756769400411,0.80999559,108960.0,108950.0,0.2886741]
[1756769400665,0.626442,108960.0,108950.0,0.47224454]
[1756769400869,0.51794376,108960.0,108950.0,0.47531454]
[1756769401461,0.51794376,108960.0,108950.0,0.47224454]
[1756769401880,0.51794829,108960.0,108950.0,0.47224454]
[1756769402228,0.81000012,108960.0,108950.0,0.47224454]
[1756769402579,0.51794829,108960.0,108950.0,0.47224454]
[1756769403372,0.51794829,108960.0,108950.0,0.47531454]
[1756769404054,0.51794829,108960.0,108950.0,0.32019454]
[1756769404260,0.51794829,108960.0,108950.0,0.47531454]
[1756769404842,0.51794829,108960.0,108950.0,0.32019454]
[1756769405073,0.51794829,108960.0,108950.0,0.47531454]
[1756769405286,0.50939011,108960.0,108950.0,0.47531454]
[1756769405497,0.51795765,108960.0,108950.0,0.24703599]
[1756769405707,1.15000948,108960.0,108950.0,0.24703599]
[1756769406759,1.15000948,108960.0,108950.0,0.43570643]
[1756769406760,0.85795765,108960.0,108950.0,0.43570643]
[1756769407171,0.85795765,108960.0,108950.0,0.43363643]
[1756769407343,0.56590582,108960.0,108950.0,0.25006599]
[1756769407577,1.15000948,108960.0,108950.0,0.25006599]
[1756769407808,1.15000948,108960.0,108950.0,0.24703599]
[1756769408463,1.15000948,108960.0,108950.0,0.09191599]
[1756769408675,1.15002913,108960.0,108950.0,0.09191599]
[1756769408890,1.15002943,108960.0,108950.0,0.09191599]
[1756769409103,1.16981912,108960.0,108950.0,0.09191599]
[1756769409305,1.16981912,108960.0,108950.0,0.24699599]
[1756769409510,1.16981912,108960.0,108950.0,0.09191599]
[1756769409702,1.16981912,108960.0,108950.0,0.24699599]
[1756769409909,1.18700582,108960.0,108950.0,0.24699599]
[1756769412202,1.18700582,108960.0,108950.0,0.25002599]
[1756769412594,1.18700582,108960.0,108950.0,0.24699599]
[1756769413412,1.21459782,108960.0,108950.0,0.24699599]
[1756769415122,1.21459782,108960.0,108950.0,0.25002599]
[1756769415247,1.18882363,108960.0,108950.0,0.25002599]
[1756769415446,1.18882363,108960.0,108950.0,0.24699599]
[1756769418422,1.18882363,108960.0,108950.0,0.25002599]
[1756769418622,1.18882363,108960.0,108950.0,0.24699599]
[1756769420299,0.60471997,108960.0,108950.0,0.24699599]